bitfinex/quotes_ETHUSD_20241130
["timestamp","ask_amount","ask_price","bid_price","bid_amount"]
[1732932273280,2.77483,3603.9,3602.7,1.5559]
[1732932273281,2.77487,3603.8,3602.9,2.77551]
[1732932273444,2.77495,3603.7,3602.9,2.77551]
[1732932274478,1.6054,3604.7,3603.0,0.02775131]
[1732932274687,1.6054,3605.6,3604.1,1.5559]
[1732932274914,1.6054,3605.6,3604.2,0.433054]
[1732932274915,0.41721727,3605.5,3604.2,0.433054]
[1732932275225,2.774,3604.9,3604.2,0.433054]
[1732932275929,2.77394,3605.0,3604.2,3.207584]
[1732932276128,5.54793,3605.0,3604.2,3.207584]
[1732932276313,2.77406,3604.9,3604.2,0.433054]
[1732932276531,3.55,3604.8,3603.6,1.5559]
[1732932276823,2.77418,3604.7,3603.9,2.77476]
[1732932276984,2.77418,3604.7,3603.9,3.48809974]
[1732932277175,3.0,3604.8,3604.0,2.77467]
[1732932277379,4.6054,3605.0,3604.3,2.77445]
[1732932277621,3.0,3604.9,3604.0,2.77467]
[1732932277821,3.0,3604.9,3604.1,2.77455]
[1732932277976,3.0,3604.9,3604.2,1.5559]
[1732932278182,2.77408,3604.8,3604.2,1.5559]
[1732932278711,5.77392,3605.0,3604.2,4.33043]
[1732932278894,2.77401,3604.9,3604.2,1.5559]
[1732932279484,2.77409,3604.8,3604.2,1.5559]
[1732932279685,3.0,3605.0,3604.2,1.5559]
[1732932279903,3.0,3605.0,3604.2,4.33038]
[1732932280114,2.77395,3605.0,3604.2,4.33038]
[1732932280298,2.7737,3605.3,3604.3,0.02774332]
[1732932280299,3.0,3605.3,3604.3,0.02774332]
[1732932280503,3.0,3605.3,3604.6,2.77419]
[1732932280833,3.0,3605.3,3603.6,0.27610932]
[1732932280834,3.25419306,3605.1,3603.7,1.5559]
[1732932280982,2.77432,3604.5,3603.8,0.16262569]
[1732932281181,2.77433,3604.5,3603.7,1.5559]
[1732932281406,3.48595931,3605.0,3603.7,1.5559]
[1732932281407,2.77415,3604.7,3603.8,0.16277351]
[1732932281616,2.77429,3604.6,3603.9,0.16277351]
[1732932281826,0.50913593,3604.9,3603.9,0.16277351]
[1732932281827,2.77411,3604.8,3604.0,0.16277351]
[1732932281999,2.77418,3604.7,3604.1,0.16277351]
[1732932282187,2.77418,3604.7,3604.2,0.16292219]
[1732932282394,3.0,3605.0,3603.7,4.33082]
[1732932282395,3.0,3605.0,3603.8,0.02774394]
[1732932282625,1.6054,3605.2,3604.0,1.5559]
[1732932282789,2.77414,3604.8,3604.1,0.16292282]
[1732932282991,2.77414,3604.8,3604.0,4.33059]
[1732932283219,2.77414,3604.8,3604.1,0.16297418]
[1732932283553,2.77403,3604.9,3604.2,0.16297418]
[1732932283728,2.77403,3604.9,3604.3,0.16297418]
[1732932283886,2.77371,3605.3,3604.4,2.93734418]
[1732932284085,2.77369,3605.4,3604.5,0.42368469]
[1732932284286,2.77409,3604.8,3604.6,0.16297418]
[1732932284485,2.77415,3604.7,3604.0,1.5559]
[1732932284723,2.77446,3604.3,3604.1,0.16297208]
[1732932284928,2.77454,3604.2,3604.1,0.16297208]
[1732932285099,3.329433,3604.2,3604.1,0.16297208]
[1732932285296,0.554893,3604.2,3603.6,0.26115215]
[1732932285506,2.77469,3604.0,3603.7,0.16323893]
[1732932285712,2.77469,3604.0,3603.8,0.16323893]
[1732932285911,2.77454,3604.2,3603.9,0.16323893]
[1732932286126,2.77461,3604.1,3604.0,0.16323893]
[1732932286325,3.491105,3604.1,3604.0,0.16323893]
[1732932286627,2.77461,3604.1,3604.0,0.16323893]
[1732932287542,2.77461,3604.1,3604.0,0.42489994]
[1732932287733,2.77461,3604.1,3603.3,1.6088]
[1732932287903,2.77461,3604.1,3604.0,0.16355037]
[1732932288114,2.77454,3604.2,3604.0,0.42558114]
[1732932288442,2.77453,3604.3,3604.1,0.42558114]
[1732932288610,2.77432,3604.5,3604.2,0.75311801]
[1732932288808,2.77438,3604.4,3604.3,0.42558114]
[1732932289494,3.03320531,3604.4,3604.3,0.42558114]
[1732932290332,3.03320531,3604.4,3604.3,0.75328186]
[1732932290333,2.77438,3604.4,3604.3,0.75328186]
[1732932290712,2.77438,3604.4,3604.3,0.42558114]
[1732932290918,0.25894409,3604.4,3604.3,0.42558114]
[1732932291113,3.03327409,3604.5,3604.3,0.42558114]
[1732932291332,0.25894409,3604.4,3604.1,1.6393]
[1732932291532,2.77415,3604.7,3604.1,1.6393]
[1732932291533,0.25894409,3604.3,3604.2,0.26252072]
[1732932291839,0.25894409,3604.5,3604.2,0.42659487]
[1732932292042,0.25894409,3604.4,3604.3,0.42659487]
[1732932292901,2.77437,3604.5,3604.3,0.42659487]
[1732932293252,2.77412,3604.8,3604.4,0.42659487]
[1732932293457,1.9618595,3605.3,3604.5,0.42659487]
[1732932293458,0.25922731,3604.7,3604.5,0.42659487]
[1732932293655,0.4147637,3605.2,3604.1,1.6393]
[1732932293656,0.97918577,3605.2,3604.6,0.42659487]
[1732932293809,0.97918577,3605.2,3604.7,0.42659487]
[1732932293810,0.25922459,3605.1,3604.7,0.42659487]
[1732932294009,0.25922459,3605.0,3604.8,0.42659487]
[1732932294335,2.77384,3605.1,3604.9,0.42659487]
[1732932294547,0.4147637,3605.2,3605.0,0.75473919]
[1732932294738,0.25917196,3605.1,3604.8,1.91275513]
[1732932294939,2.77378,3605.2,3604.9,0.43749252]
[1732932295129,0.25910727,3605.1,3605.0,0.59056496]
[1732932295310,0.25910727,3605.1,3605.0,0.75460235]
[1732932296346,3.03294727,3605.1,3605.0,0.75460235]
[1732932296547,3.613598,3605.1,3605.0,0.42650173]
[1732932296719,4.02811107,3605.1,3605.0,0.42650173]
[1732932297244,3.44746034,3605.1,3605.0,0.42650173]
[1732932297459,3.03294727,3605.1,3605.0,0.75454452]
[1732932297659,3.03294727,3605.1,3605.0,0.42650173]
[1732932298028,3.03294727,3605.1,3605.0,0.7545434]
[1732932298229,2.77394,3605.0,3604.5,0.27335606]
[1732932298427,2.77394,3605.0,3604.6,0.43733912]
[1732932298726,0.25907638,3604.9,3604.7,0.75436052]
[1732932298925,2.77394,3605.0,3604.8,0.75436052]
[1732932299177,2.77378,3605.2,3604.9,0.75436052]
[1732932299471,2.77363,3605.4,3605.0,0.75436052]
[1732932299628,0.25903237,3605.3,3605.1,2.06566675]
[1732932299836,3.03272237,3605.3,3605.2,0.42636675]
[1732932300034,2.77369,3605.3,3605.2,0.42636675]
[1732932300446,3.03270612,3605.3,3605.2,0.42636675]
[1732932301432,3.61333073,3605.3,3605.2,0.42636675]
[1732932301635,3.61333073,3605.3,3605.2,0.16398306]
[1732932301955,2.7734,3605.7,3605.2,0.42072575]
[1732932302155,2.77324,3605.9,3605.3,0.41727158]
[1732932302156,2.77361,3605.4,3605.3,0.41727158]
[1732932302560,3.03262881,3605.4,3605.3,0.41727158]
[1732932302769,5.29258609,3605.4,3605.3,0.41727158]
[1732932303136,8.29258609,3605.4,3605.3,0.16048464]
[1732932303440,8.70704004,3605.4,3605.3,0.41745296]
[1732932303854,9.25704004,3605.4,3605.3,0.41745296]
[1732932304052,9.25704004,3605.4,3605.3,0.41760099]
[1732932304550,2.77405,3604.9,3604.3,0.26777295]
[1732932304748,0.25901881,3604.8,3604.4,1.19959419]
[1732932304967,0.25901881,3604.7,3604.5,0.73928589]
[1732932305140,2.77409,3604.8,3604.6,0.73928589]
[1732932305336,2.77426,3604.6,3604.4,0.4603083]
[1732932305567,2.77426,3604.6,3604.5,0.73909202]
[1732932305769,3.03359218,3604.6,3604.5,0.73909202]
[1732932306186,3.03359218,3604.6,3604.5,0.41773647]
[1732932307042,3.44856775,3604.6,3604.5,0.41773647]
[1732932307239,3.44856775,3604.6,3604.5,0.16066335]
[1732932307449,3.44853775,3604.6,3604.5,0.1607103]
[1732932308142,3.03356218,3604.6,3604.5,0.1607103]
[1732932308542,3.44853775,3604.6,3604.5,0.1607103]
[1732932308769,4.23459053,3604.6,3604.5,0.1607103]
[1732932309373,4.78459053,3604.6,3604.5,0.1607103]
[1732932309542,4.78459053,3604.6,3603.7,0.26786736]
[1732932309543,2.77484,3603.8,3603.7,0.26786736]
[1732932309744,3.0341884,3603.8,3603.7,0.42864704]
[1732932310080,3.0341884,3603.8,3603.7,0.68590607]
[1732932310282,3.44906517,3603.8,3603.7,0.42864704]
[1732932310450,3.44904975,3603.8,3603.7,0.42864704]
[1732932310640,4.78522327,3603.8,3603.7,0.26786736]
[1732932312408,9.42312327,3603.8,3603.7,0.26786736]
[1732932312810,11.01149944,3603.8,3603.7,0.26786736]
[1732932312993,11.58979032,3603.8,3603.7,0.26786736]
[1732932313330,2.77577,3602.6,3601.9,1.5608]
[1732932313491,0.55,3602.9,3602.0,0.41774412]
[1732932313691,2.77578,3602.6,3602.1,0.16066638]
[1732932313892,2.7759,3602.5,3602.2,0.41774412]
[1732932314111,2.77593,3602.4,3602.2,0.16066638]
[1732932314415,2.77593,3602.4,3602.3,0.16067737]
[1732932315429,2.77593,3602.4,3602.0,0.25709533]
[1732932315586,2.77577,3602.6,3602.1,0.16046239]
[1732932315786,2.77587,3602.5,3601.9,1.5608]
[1732932316092,2.77587,3602.5,3602.0,0.1604612]
[1732932316315,2.77577,3602.6,3601.9,4.33704]
[1732932316481,2.77577,3602.6,3602.0,0.16037671]
[1732932316828,2.77577,3602.6,3602.0,2.77622]
[1732932317326,2.77577,3602.6,3601.9,1.5608]
[1732932317529,2.77577,3602.6,3601.9,4.33704]
[1732932317684,2.77577,3602.6,3602.0,2.93650633]
[1732932317881,2.77563,3602.8,3602.2,2.77606]
[1732932318087,2.77547,3603.0,3602.3,4.33673]
[1732932318648,1.6379,3603.4,3602.4,0.1601955]
[1732932318649,2.77517,3603.4,3602.4,0.1601955]
[1732932318831,2.77517,3603.4,3602.5,5.7118255]
[1732932319127,2.77524,3603.3,3602.7,2.77562]
[1732932319284,3.29491835,3603.6,3602.5,2.77578]
[1732932319703,2.77521,3603.4,3602.7,2.77565]
[1732932320708,2.77521,3603.4,3602.8,1.5608]
[1732932320913,2.77521,3603.4,3602.8,4.3364]
[1732932322898,2.77519,3603.4,3602.8,1.5608]
[1732932323144,2.77518,3603.4,3602.8,1.5608]
[1732932324003,2.77535,3603.2,3602.8,1.5608]
[1732932324201,2.77549,3603.0,3602.5,1.6317]
[1732932324514,2.77562,3602.8,3602.5,1.6317]
[1732932324703,2.77549,3603.0,3602.5,1.6317]
[1732932325310,2.77533,3603.2,3602.5,1.6317]
[1732932325553,2.77533,3603.2,3602.6,2.77572]
[1732932326151,2.77535,3603.2,3602.5,4.40747]
[1732932326347,2.77539,3603.1,3602.5,4.40747]
[1732932327455,2.77539,3603.1,3602.6,0.15678011]
[1732932327660,2.77539,3603.1,3602.6,2.77577]
[1732932327966,2.77529,3603.3,3602.6,2.77577]
[1732932328126,3.29490835,3603.6,3602.8,2.7756]
[1732932328526,3.29490835,3603.6,3602.9,2.77554]
[1732932328761,2.77515,3603.4,3602.9,2.77554]
[1732932328964,2.77531,3603.2,3602.6,2.77576]
[1732932329169,0.51990835,3603.6,3602.7,0.15680939]
[1732932329373,0.51990835,3603.6,3602.6,2.77576]
[1732932329531,2.77528,3603.3,3602.7,2.77564]
[1732932329846,2.77532,3603.2,3602.7,2.77564]
[1732932330759,2.7751,3603.5,3602.7,2.77564]
[1732932330968,2.97178818,3603.8,3603.2,2.77525]
[1732932330969,0.54771466,3603.8,3603.2,2.77525]
[1732932331273,2.77482,3603.9,3603.2,2.77525]
[1732932331274,2.77482,3603.9,3603.3,2.77516]
[1732932331565,2.77482,3603.9,3603.4,0.15686075]
[1732932331935,2.77451,3604.3,3603.7,2.77486]
[1732932332128,2.77451,3604.3,3603.8,0.15686075]
[1732932332338,2.77451,3604.3,3603.9,0.15686075]
[1732932332569,2.77451,3604.3,3603.5,4.32435]
[1732932332570,4.92534616,3604.6,3603.8,2.77484]
[1732932332877,2.77445,3604.4,3603.9,0.15689292]
[1732932333087,0.56579616,3604.6,3603.5,4.32434]
[1732932333088,2.77458,3604.2,3603.5,4.32434]
[1732932333381,2.77434,3604.5,3603.9,2.77477]
[1732932333531,2.77426,3604.6,3603.9,2.77472]
[1732932333727,3.03312146,3604.5,3604.0,0.15704019]
[1732932333927,3.03312146,3604.5,3603.9,2.77472]
[1732932333928,2.77436,3604.5,3603.9,2.77472]
[1732932334179,2.77436,3604.5,3604.0,0.15703942]
[1732932334331,2.77436,3604.5,3604.1,0.15703942]
[1732932334673,2.77438,3604.4,3603.9,2.77472]
[1732932334886,3.0,3604.9,3603.9,2.77472]
[1732932334887,3.0,3604.9,3604.2,2.77448]
[1732932335100,3.03292237,3604.8,3604.3,0.15706802]
[1732932335302,2.77386,3605.1,3604.4,1.70636168]
[1732932335595,0.25886975,3605.0,3604.5,0.15706168]
[1732932335897,2.77389,3605.1,3604.6,0.15706168]
[1732932336197,3.34299462,3605.2,3604.4,4.32363]
[1732932336198,2.77377,3605.2,3604.7,0.15706168]
[1732932336408,2.77377,3605.2,3604.8,0.15706168]
[1732932336557,2.77377,3605.2,3604.6,0.25111029]
[1732932336758,2.77377,3605.2,3604.7,0.15693275]
[1732932336996,2.77377,3605.2,3604.8,0.15693275]
[1732932337299,0.54203987,3605.3,3604.4,4.32364]
[1732932337521,0.75477386,3605.3,3604.5,0.15687635]
[1732932337719,2.77415,3604.7,3604.6,0.15687635]
[1732932338016,2.77415,3604.7,3604.1,1.5493]
[1732932338167,2.77405,3604.9,3604.2,2.93142804]
[1732932338368,2.77405,3604.9,3604.3,2.93134804]
[1732932338568,3.383834,3604.9,3604.3,2.77444]
[1732932338804,2.77397,3605.0,3604.4,2.93122802]
[1732932339012,2.77397,3605.0,3604.5,0.15686802]
[1732932339181,2.77397,3605.0,3603.4,2.77515]
[1732932339182,2.7747,3604.0,3603.4,2.77515]
[1732932339369,2.7747,3604.0,3603.5,0.15691595]
[1732932339370,3.05229,3603.9,3603.5,0.15691595]
[1732932339714,3.05229,3603.9,3603.2,4.3246]
[1732932339715,2.77497,3603.7,3603.6,0.15691595]
[1732932339865,2.77497,3603.7,3602.2,2.77602]
[1732932339866,2.77515,3603.4,3602.9,1.5493]
[1732932340072,2.77515,3603.4,3603.0,0.15701339]
[1732932340284,2.77531,3603.2,3603.1,0.15701339]
[1732932340705,3.330356,3603.2,3603.1,0.15701339]
[1732932341408,3.330356,3603.2,3602.7,0.25126954]
[1732932341584,2.77531,3603.2,3602.7,0.25126954]
[1732932341778,0.27747,3603.9,3602.8,0.25126954]
[1732932341779,3.05229,3603.9,3602.8,0.25126954]
[1732932341966,3.05229,3603.9,3602.6,0.02775611]
[1732932341967,0.27747,3603.9,3603.3,4.32448]
[1732932342168,0.27747,3603.9,3603.4,0.15699497]
[1732932342413,0.55,3604.3,3603.5,0.15699497]
[1732932342599,2.77461,3604.1,3603.6,0.15699497]
[1732932342789,2.77461,3604.1,3603.7,0.15699497]
[1732932342990,2.77493,3603.7,3603.4,0.2511452]
[1732932343175,2.556043,3604.4,3603.5,0.15700545]
[1732932343176,2.77504,3603.6,3603.5,0.15700545]
[1732932343579,2.77504,3603.6,3603.0,1.5312]
[1732932343807,2.77504,3603.6,3603.1,0.15707667]
[1732932344120,2.77504,3603.6,3603.2,0.15707667]
[1732932344273,2.77464,3604.1,3603.3,2.93224667]
[1732932344477,3.03351021,3604.0,3603.4,0.15707667]
[1732932344717,3.03351021,3604.0,3603.1,2.77532]
[1732932344718,2.77485,3603.8,3603.2,3.02664222]
[1732932345033,2.77485,3603.8,3603.3,0.15708116]
[1732932345321,2.77485,3603.8,3603.2,2.7753]
[1732932345322,2.77485,3603.8,3603.4,0.15708116]
[1732932345500,3.329805,3603.8,3603.5,0.15708116]
[1732932345816,3.329805,3603.8,3603.6,0.15712397]
[1732932346024,3.329805,3603.8,3603.3,0.25141029]
[1732932346173,2.77485,3603.8,3603.4,0.15711985]
[1732932346380,2.77485,3603.8,3603.5,0.15711985]
[1732932346600,2.77485,3603.8,3603.6,0.15711985]
[1732932346803,2.77485,3603.8,3603.3,0.25149231]
[1732932347012,5.77431,3604.5,3603.3,0.25149231]
[1732932347013,1.5841,3604.7,3604.1,2.77456]
[1732932347197,1.94760663,3605.3,3604.3,4.30561]
[1732932347198,1.79683399,3605.3,3604.3,4.30561]
[1732932347512,2.77408,3604.8,3604.3,1.5312]
[1732932347720,2.77408,3604.8,3604.4,0.15707695]
[1732932347923,0.5548,3604.8,3604.5,0.15707695]
[1732932348216,0.2589335,3604.9,3604.6,0.15707695]
[1732932348427,2.77408,3604.8,3604.3,1.5312]
[1732932348742,0.2589335,3604.9,3604.4,0.15708579]
[1732932348743,2.77416,3604.7,3604.4,0.15708579]
[1732932348893,2.77402,3604.9,3604.4,0.15708579]
[1732932349079,3.58778797,3604.8,3604.5,0.15708579]
[1732932349425,3.03300097,3604.8,3604.6,0.15708579]
[1732932349576,0.25892097,3604.8,3604.3,4.30566]
[1732932349780,0.25892097,3604.8,3604.4,0.15705137]
[1732932350011,0.25892097,3604.8,3604.5,0.15705137]
[1732932350278,3.03300097,3604.8,3604.3,1.5312]
[1732932350517,3.03300097,3604.8,3604.4,0.15704506]
[1732932350819,3.03300097,3604.8,3604.3,1.5312]
[1732932350978,0.25892097,3604.8,3604.4,0.15704914]
[1732932351174,0.25892097,3604.8,3604.5,0.15704914]
[1732932351377,0.25892097,3604.8,3604.6,0.15704914]
[1732932351612,0.25892097,3604.8,3604.3,4.30566]
[1732932351814,0.25892097,3604.8,3604.4,0.1570279]
[1732932352127,0.25892097,3604.8,3604.5,0.1570279]
[1732932352128,3.61373707,3604.8,3604.5,0.1570279]
[1732932352414,2.77423,3604.6,3603.9,4.27865]
[1732932352618,2.77431,3604.5,3603.9,4.27865]
[1732932352774,2.77431,3604.5,3604.0,0.40832494]
[1732932352974,2.77454,3604.2,3604.1,0.15704346]
[1732932353376,2.77478,3603.9,3603.6,0.25128148]
[1732932353595,2.77478,3603.9,3603.7,0.15712453]
[1732932353792,2.77478,3603.9,3603.8,0.15712453]
[1732932353993,3.0,3604.4,3603.8,0.15712453]
[1732932354196,2.77466,3604.1,3603.9,0.15711578]
[1732932354408,2.77466,3604.1,3603.6,0.2513972]
[1732932354718,2.77466,3604.1,3603.7,0.15712051]
[1732932355030,2.77466,3604.1,3603.8,0.15712051]
[1732932355220,2.77466,3604.1,3603.9,0.15712051]
[1732932355538,2.77525,3603.3,3603.1,1.5039]
[1732932355823,2.77525,3603.3,3603.2,0.15723567]
[1732932356383,2.77525,3603.3,3602.8,0.31454173]
[1732932356595,2.77508,3603.5,3602.9,0.40888396]
[1732932356811,2.77508,3603.5,3603.0,0.40887181]
[1732932357019,2.77524,3603.3,3603.1,0.15725379]
[1732932357193,2.77524,3603.3,3603.2,0.15725379]
[1732932357602,2.77508,3603.5,3603.2,0.15725379]
[1732932357784,2.77518,3603.4,3603.3,0.15727152]
[1732932358826,2.77518,3603.4,3602.8,2.77561]
[1732932358988,2.77518,3603.4,3602.7,1.5039]
[1732932359192,2.77518,3603.4,3602.9,2.77553]
[1732932359920,2.77518,3603.4,3603.0,0.40896222]
[1732932360229,2.77518,3603.4,3602.9,2.77553]
[1732932360230,2.77518,3603.4,3603.1,0.40896222]
[1732932360399,2.77518,3603.4,3603.2,0.15728856]
[1732932360598,2.77518,3603.4,3603.1,0.25167366]
[1732932360901,2.77511,3603.5,3603.2,0.15730178]
[1732932361097,3.330123,3603.5,3603.3,0.15730178]
[1732932361302,3.330123,3603.5,3603.4,0.15730178]
[1732932361487,3.58925232,3603.5,3603.4,0.15730178]
[1732932361688,3.330123,3603.5,3603.4,0.15730178]
[1732932362288,3.330123,3603.5,3603.1,0.2516951]
[1732932362519,3.330123,3603.5,3603.2,0.15728143]
[1732932362735,3.330123,3603.5,3603.3,0.15728143]
[1732932362925,3.330123,3603.5,3603.4,0.15728143]
[1732932363113,2.77511,3603.5,3603.4,0.15728143]
[1732932363526,2.77536,3603.2,3602.9,0.2516542]
[1732932363701,2.77536,3603.2,3603.0,0.15727215]
[1732932363900,2.77536,3603.2,3603.1,0.15727215]
[1732932364348,3.482924,3603.2,3603.1,0.15727215]
[1732932364638,3.482924,3603.2,3602.5,2.77581]
[1732932364639,3.482924,3603.2,3602.6,3.0273742]
[1732932364942,3.482924,3603.2,3602.7,0.40887341]
[1732932365115,3.482924,3603.2,3602.8,0.15721921]
[1732932365303,3.482924,3603.2,3602.9,0.15721921]
[1732932365615,3.482924,3603.2,3603.0,0.15721921]
[1732932365812,3.482924,3603.2,3602.6,0.2516542]
[1732932366023,3.482924,3603.2,3602.4,1.5929]
[1732932366024,3.482924,3603.2,3602.7,0.40883846]
[1732932366196,0.55,3603.4,3602.8,0.15718426]
[1732932366400,2.77559,3602.9,3602.6,0.2516542]
[1732932366739,2.77559,3602.9,3602.7,0.15716839]
[1732932366941,2.77559,3602.9,3602.8,0.15716839]
[1732932367142,3.330692,3602.9,3602.8,0.15716839]
[1732932368643,4.867992,3602.9,3602.8,0.15716839]
[1732932369202,4.867992,3602.9,3602.3,0.2516542]
[1732932369203,4.867992,3602.9,3602.4,0.2516542]
[1732932369536,4.867992,3602.9,3602.1,0.31438597]
[1732932369537,2.77572,3602.7,3602.5,0.15716631]
[1732932369715,2.77572,3602.7,3602.6,0.15716631]
[1732932370540,3.5400612,3602.7,3602.6,0.15708152]
[1732932370910,2.77599,3602.4,3601.9,0.31419293]
[1732932371252,2.77599,3602.4,3602.0,0.40846431]
[1732932371403,2.77599,3602.4,3602.1,0.15712192]
[1732932371598,2.77599,3602.4,3602.2,0.15712192]
[1732932371912,2.7757,3602.7,3602.3,0.15712192]
[1732932372116,2.7757,3602.7,3602.4,0.15712192]
[1732932372317,2.77577,3602.6,3602.5,0.15712192]
[1732932372501,1.5373,3602.9,3602.5,0.15712192]
[1732932372502,4.31291,3602.9,3602.5,0.15712192]
[1732932372703,0.431291,3602.8,3602.6,0.15712192]
[1732932372902,0.431291,3602.8,3602.3,0.25134239]
[1732932373151,2.77575,3602.7,3602.4,0.15661006]
[1732932373436,2.77575,3602.7,3602.5,0.15661006]
[1732932373643,2.77575,3602.7,3602.2,0.25134239]
[1732932373808,4.31291,3602.9,3602.3,2.93258271]
[1732932374004,3.34000423,3602.7,3602.4,0.15658271]
[1732932374209,3.34000423,3602.7,3602.5,0.15658271]
[1732932374449,3.34000423,3602.7,3602.2,0.25053763]
[1732932374605,0.56430423,3602.7,3602.3,2.77596]
[1732932374952,0.56430423,3602.7,3602.2,0.25053763]
[1732932374953,2.776,3602.3,3602.2,0.25053763]
[1732932375253,2.77577,3602.6,3601.7,2.77646]
[1732932375455,2.776,3602.3,3601.7,2.77646]
[1732932375665,2.776,3602.3,3601.8,0.25051329]
[1732932375947,2.77595,3602.4,3601.8,0.40707661]
[1732932376152,2.77595,3602.4,3601.8,0.25051329]
[1732932376479,2.77595,3602.4,3601.6,4.37884]
[1732932376480,2.77601,3602.3,3601.7,2.77646]
[1732932377031,2.77601,3602.3,3601.8,2.77638]
[1732932377441,2.77601,3602.3,3600.7,3.0]
[1732932377442,2.77631,3601.9,3600.7,3.0]
[1732932377619,2.77631,3601.9,3600.5,0.65825356]
[1732932377620,4.31338,3602.2,3601.2,2.77684]
[1732932377835,2.77638,3601.9,3601.2,2.77678]
[1732932378037,2.77615,3602.1,3601.5,2.77661]
[1732932378208,2.77615,3602.1,3601.5,4.37891]
[1732932378412,2.77615,3602.1,3601.6,0.15665835]
[1732932378708,2.77615,3602.1,3601.7,0.15665835]
[1732932378909,2.77615,3602.1,3601.8,0.15665835]
[1732932379114,1.5373,3602.2,3601.5,4.37891]
[1732932379115,4.3134,3602.2,3601.6,2.77649]
[1732932379323,4.3134,3602.2,3601.7,0.15655509]
[1732932379524,0.56833175,3602.0,3601.8,0.15655509]
[1732932379722,0.56833175,3602.0,3600.9,3.03817103]
[1732932379723,0.56833175,3602.0,3601.9,0.15655509]
[1732932379952,0.56833175,3602.0,3601.3,0.25062163]
[1732932380266,0.56833175,3602.0,3601.4,0.40723651]
[1732932380428,0.56833175,3602.0,3601.5,0.40723651]
[1732932380629,0.56833175,3602.0,3601.6,0.15661488]
[1732932381031,0.48771742,3602.7,3601.7,1.75891488]
[1732932381032,2.77571,3602.7,3601.7,1.75891488]
[1732932381223,2.77571,3602.7,3601.8,0.40723651]
[1732932381467,2.77571,3602.7,3601.9,0.40723651]
[1732932381638,2.77571,3602.7,3602.0,0.40723651]
[1732932381842,4.3125,3603.4,3602.1,0.40723651]
[1732932382023,4.3125,3603.4,3601.8,2.77638]
[1732932382024,0.25899313,3603.3,3602.2,0.15661488]
[1732932382233,2.0873,3603.1,3602.3,0.15661488]
[1732932382476,2.0873,3603.1,3601.7,1.6023]
[1732932382477,2.77585,3602.5,3602.2,0.25062163]
[1732932382682,0.25899313,3602.4,3601.8,3.02712506]
[1732932382959,2.77602,3602.3,3601.9,0.15670909]
[1732932383165,0.68697615,3602.5,3602.0,0.15670909]
[1732932383326,2.77609,3602.2,3601.4,1.5944]
[1732932383528,2.7763,3602.0,3601.5,0.40755271]
[1732932383732,4.94959,3602.2,3601.6,0.15674643]
[1732932384042,4.94959,3602.2,3601.5,0.25080628]
[1732932384043,2.77638,3601.8,3601.7,0.15674643]
[1732932384423,2.77632,3601.9,3601.7,0.15674643]
[1732932384769,2.77632,3601.9,3601.8,0.15677769]
[1732932385132,3.32632,3601.9,3601.8,0.15677769]
[1732932385330,2.77658,3601.6,3601.3,0.25080628]
[1732932385529,3.4361339,3601.8,3601.4,0.1569051]
[1732932385737,2.77662,3601.5,3601.3,0.25080628]
[1732932386040,2.77662,3601.5,3601.4,0.15691448]
[1732932386226,2.77646,3601.7,3601.4,0.15691448]
[1732932386429,2.77654,3601.6,3601.5,0.15691448]
[1732932387665,2.77654,3601.6,3601.5,0.15685308]
[1732932390876,3.45272139,3601.7,3601.5,0.15685308]
[1732932391055,2.77647,3601.7,3601.6,0.15685308]
[1732932392457,3.3431913,3601.7,3601.6,0.15685308]
[1732932394010,1.5216,3602.5,3601.7,1.578]
[1732932394191,0.25923003,3602.4,3601.8,0.40786056]
[1732932394397,0.25923003,3602.4,3601.9,0.60644662]
[1732932394597,2.77574,3602.7,3602.0,0.40786056]
[1732932394749,0.25925641,3602.6,3602.1,0.15685308]
[1732932395097,0.25925641,3602.6,3602.2,0.40786056]
[1732932395304,0.61902255,3602.5,3602.3,0.15685308]
[1732932395505,3.03517641,3602.4,3601.9,0.31373615]
[1732932395705,2.77609,3602.2,3602.0,0.15688413]
[1732932396007,0.25925641,3602.3,3602.0,0.15688413]
[1732932396008,2.77615,3602.1,3602.0,0.25098531]
[1732932396364,2.77633,3601.9,3601.6,0.31373615]
[1732932396676,3.32646,3601.7,3601.5,0.31373615]
[1732932396879,2.77654,3601.6,3601.3,0.31373615]
[1732932397178,2.77629,3602.0,3601.6,0.25108104]
[1732932397376,2.77638,3601.8,3601.7,0.1569596]
[1732932397579,3.03583702,3601.8,3601.7,0.1569596]
[1732932398091,3.03583982,3601.8,3601.7,0.1569596]
[1732932400887,0.25945982,3601.8,3601.7,0.1569596]
[1732932401138,0.25945982,3601.8,3601.7,0.40826458]
[1732932401317,3.03583982,3601.8,3601.7,0.40826458]
[1732932401493,3.03583982,3601.8,3601.7,0.40840717]
[1732932402005,0.25945982,3601.8,3601.7,0.40840717]
[1732932402343,2.77575,3602.7,3601.7,0.72258587]
[1732932402494,2.77591,3602.5,3601.8,0.15707506]
[1732932402693,0.25962649,3602.4,3601.9,0.40840571]
[1732932402893,0.25962649,3602.4,3601.6,1.578]
[1732932402894,0.25962649,3602.3,3602.0,0.40840571]
[1732932403096,0.25962649,3602.2,3602.1,1.92320571]
[1732932403408,3.03553649,3602.5,3602.1,1.92320571]
[1732932403607,0.25962649,3602.4,3602.2,0.40840571]
[1732932403809,2.77588,3602.5,3602.3,0.40840571]
[1732932404003,2.77588,3602.5,3602.1,1.5148]
[1732932404004,0.25967653,3602.4,3602.1,1.5148]
[1732932404211,0.25967653,3602.3,3602.2,0.40847748]
[1732932404997,0.25967653,3602.3,3602.1,1.5148]
[1732932405300,2.77623,3602.0,3601.6,1.5148]
[1732932405528,3.61692818,3602.2,3600.2,3.0]
[1732932405529,2.77647,3601.7,3601.4,0.26197663]
[1732932405845,0.55,3601.6,3601.5,0.7232092]
[1732932406021,0.80978116,3601.6,3601.5,0.40875865]
[1732932406535,3.58632116,3601.6,3601.5,0.40875865]
[1732932406973,0.25978116,3601.6,3601.5,1.92355865]
[1732932407185,0.25977462,3601.7,3601.5,2.238076]
[1732932407333,0.25978587,3601.8,3601.6,0.723276]
[1732932407529,2.77633,3601.9,3601.7,0.723276]
[1732932407826,2.77633,3601.9,3601.8,0.40875865]
[1732932408026,2.53611023,3601.9,3601.8,0.40875865]